Cogmind - Beta 14 @@@ ROGUE MODE // 2024.11.10 @ 11:44:57 Player: Shimmyarah Result: Destroyed by S-27 Virus with Autogun Performance ------------- Evolutions (3) 1500 Regions Visited (5) 1000 Robots Destroyed (74) 370 Value Destroyed (1864) 1864 Prototype IDs (0) 0 Alien Tech Used (0) 0 Bonus (8) 8 TOTAL SCORE: 4742 Bonus ------- High Alert Combat Kills 8 Cogmind --------- Core Integrity 0/700 Matter 10/300 Energy 98/100 System Corruption 8% Temperature Cool (0) Movement Core (50) Location -7/Factory Parts ------- > --- POWER (1) -------- (None) > --- PROPULSION (2) --- (None) > --- UTILITY (7) ------ Visual Processing Unit Improved Signal Interpreter Improved Terrain Scan Processor Seismic Detector > --- WEAPON (3) ------- (None) > --- INVENTORY (5) ---- Weapon Cycler Weapon Cycler Improved Light Armor Plating Peak State ------------ > --- POWER ------------ Micro Nuclear Core > --- PROPULSION ------- Light Treads Advanced Treads > --- UTILITY ---------- Medium Storage Unit Visual Processing Unit Improved Signal Interpreter Improved Terrain Scan Processor Recoil Stabilizer Transmission Jammer Improved Shield Generator > --- WEAPON ----------- Assault Cannon Assault Cannon Advanced Assault Cannon > --- INVENTORY -------- Light Nuclear Core Improved Sensor Array Improved Terrain Scanner Seismic Detector Weapon Cycler Weapon Cycler Assault Cannon Rocket Launcher Heavy Missile Launcher Powered Hammer [Rating: 41] Favorites ----------- Power Ion Engine Engine Ion Engine Power Core Micro Nuclear Core Propulsion Light Treads Treads Light Treads Utility Medium Storage Unit Device Improved Terrain Scanner Storage Medium Storage Unit Processor Visual Processing Unit Weapon Assault Cannon Energy Gun Particle Gun Ballistic Gun Assault Rifle Ballistic Cannon Assault Cannon Launcher Rocket Launcher Impact Weapon Powered Hammer Slashing Weapon Chainsword Build | -11 -10 -10 -9 -8 -7 ------- Run | Yrd Mat Min Mat Mat Fac Slots Evolved 6 | . . . 2 2 2 Power . | . . . . . . Propulsion . | . . . . . . Utility 5 | . . . 2 2 1 Weapon 1 | . . . . . 1 Parts Attached 86 | 7 5 4 13 29 28 Power 7 | 1 . . 1 3 2 Engine 5 | 1 . . 1 3 . Core 2 | . . . . . 2 Reactor . | . . . . . . Propulsion 7 | 2 . 2 2 . 1 Treads 7 | 2 . 2 2 . 1 Leg . | . . . . . . Wheel . | . . . . . . Hover . | . . . . . . Flight . | . . . . . . Utility 41 | 2 2 . 4 19 14 Device 34 | 1 1 . 2 16 14 Storage 3 | 1 1 . . 1 . Processor 4 | . . . 2 2 . Hackware . | . . . . . . Protection . | . . . . . . Artifact . | . . . . . . Weapon 31 | 2 3 2 6 7 11 Energy Gun 1 | . 1 . . . . Energy Cannon . | . . . . . . Ballistic Gun 3 | 2 . 1 . . . Ballistic Cannon 14 | . . . 5 4 5 Launcher 9 | . 2 1 1 3 2 Special Weapon . | . . . . . . Impact Weapon 3 | . . . . . 3 Slashing Weapon 1 | . . . . . 1 Piercing Weapon . | . . . . . . Special Melee Weapon . | . . . . . . Unidentified Prototypes . | . . . . . . Parts Lost 18 | . . 1 . . 17 Power 2 | . . . . . 2 Propulsion 2 | . . . . . 2 Utility 6 | . . . . . 6 Weapon 8 | . . 1 . . 7 Highest Loss Streak 8 | . . 1 . . 8 To Critical Strikes . | . . . . . . Average Slot Usage (%) 96 | . 100 100 98 100 92 Engine 8 | . 14 14 11 9 4 Treads 18 | . 28 28 21 18 12 Device 19 | . 14 14 17 23 20 Storage 9 | . 14 14 11 9 6 Processor 16 | . . . 15 21 23 Energy Gun 2 | . 3 14 1 . . Ballistic Gun 1 | . 15 3 . . . Ballistic Cannon 12 | . . . 14 17 15 Launcher 3 | . 8 10 4 . . Impact Weapon 1 | . . . . . 4 Peak Build Rating 41 | 7 12 12 17 27 41 Average Rating 22 | 5 10 11 15 24 32 On Entrance 12 | . 7 12 12 15 26 Naked Turns . | . . . . . . Heaviest Build 37 | 15 23 23 27 31 37 Greatest Support 42 | 40 40 40 40 40 42 Greatest Overweight (x) 8 | . . . 1 . 8 Average Overweight (x) . | . . . . . . Largest Inventory Capacity 10 | 8 10 10 10 10 10 Average Capacity 9 | 7 9 10 10 10 9 Most Carried 10 | 5 10 10 10 10 10 Average Carried 9 | 1 6 9 9 9 8 Final Capacity 10 | 8 10 10 10 10 5 Final Carried 10 | 2 10 10 10 10 3 Class Distribution -------------------- 38% | Scavenger-Skirmisher 21% | Scavenger-Assassin 20% | Mutant 13% | Scavenger-Mutant Dominant Class ---------------- Mutant | -10/Materials Mutant | -10/Mines Scavenger-Mutant | -9/Materials Scavenger-Skirmisher | -8/Materials Scavenger-Assassin | -7/Factory Resources | -11 -10 -10 -9 -8 -7 ----------- Run | Yrd Mat Min Mat Mat Fac Matter Collected 1732 | 330 78 208 411 295 410 Remotely . | . . . . . . Salvage Created 1690 | 130 187 241 513 300 319 Parts 132 | 10 18 18 34 23 29 Haulers Intercepted 2 | . 1 . 1 . . Recyclers Shooed 1 | . . . . . 1 Parts Field Recycled . | . . . . . . Retrieved Matter . | . . . . . . Parts Self-Destructed . | . . . . . . Prevented . | . . . . . . Kills | -11 -10 -10 -9 -8 -7 ------- Run | Yrd Mat Min Mat Mat Fac Combat Hostiles Destroyed 43 | . 7 12 11 6 7 Melee 2 | . . . . . 2 Guns 3 | . . 3 . . . Cannons 18 | . . . 11 4 3 AOE 20 | . 7 9 . 2 2 Classes Destroyed 14 | 2 5 . 3 2 2 Worker 3 | . . . . 1 2 Builder 8 | . 1 2 1 2 2 Tunneler 7 | 3 . . . . 4 Hauler 2 | . 1 . 1 . . Recycler 3 | 1 . . 1 1 . Mechanic 1 | . . . . . 1 Operator 2 | . . . 1 . 1 Watcher 5 | . 1 . 2 2 . Swarmer 9 | . 3 6 . . . Grunt 22 | . 4 6 8 2 2 Duelist 2 | . . . 1 1 . Sentry 6 | . . . 2 2 2 Hunter 1 | . . . . 1 . Programmer 3 | . . . . . 3 Best Kill Streak 10 | 4 10 3 6 4 7 Combat Bots Only 7 | . 7 3 3 3 2 Max Kills in Single Turn 4 | 1 4 3 2 2 3 Gunslinging . | . . . . . . Exploded 4 | . 4 2 . 2 1 Melee 1 | . . . . . 1 Uniques/NPCs Destroyed . | . . . . . . Combat | -11 -10 -10 -9 -8 -7 -------- Run | Yrd Mat Min Mat Mat Fac Hostile Shots Fired 389 | . 14 22 42 12 299 Missed 121 | . 3 6 15 4 93 Damage Taken 3435 | . 135 313 399 117 2471 Core 887 | . 10 83 79 14 701 Absorbed by Shields 70 | . . . . . 70 Core Remaining (%) 84 | 100 . 62 80 97 . Volleys Fired 109 | 10 6 14 34 24 21 Largest 3 | 2 2 2 2 2 3 Hottest 136 | 40 53 98 88 88 136 Shots Fired 205 | 20 12 27 58 48 40 Gun 42 | 20 8 14 . . . Cannon 136 | . . . 55 44 37 Launcher 27 | . 4 13 3 4 3 Special . | . . . . . . Kinetic 164 | 20 8 . 55 44 37 Thermal 14 | . . 14 . . . Explosive 27 | . 4 13 3 4 3 Electromagnetic . | . . . . . . Robot Hit Streak 12 | 9 2 5 6 6 12 Robot Miss Streak 5 | 1 2 2 5 3 1 Penetration Max . | . . . . . . Secondary Targets . | . . . . . . Shots Hit Robots 133 | 14 4 13 33 26 43 Core Hits 97 | 5 16 18 21 18 19 Critical Kills . | . . . . . . Critical Parts Destroyed 3 | . . . . . 3 Critical Strikes 12 | . . 3 2 4 3 Burn 3 | . . 3 . . . Blast 6 | . . . 2 4 . Smash 3 | . . . . . 3 Melee Attacks 24 | . . . . . 24 Impact 22 | . . . . . 22 Slashing 2 | . . . . . 2 Piercing . | . . . . . . Sneak Attacks 5 | . . . . . 5 Combat Hostiles . | . . . . . . Follow-up Attacks . | . . . . . . Damage Inflicted 5137 | 179 509 831 882 755 1981 Guns 302 | 179 23 100 . . . Cannons 2027 | . . . 816 570 641 Explosions 1911 | . 486 720 54 172 479 Melee 839 | . . . . . 839 Ramming 58 | . . 11 12 13 22 Kinetic 2229 | 179 23 . 816 570 641 Thermal 100 | . . 100 . . . Explosive 1911 | . 486 720 54 172 479 Electromagnetic . | . . . . . . Impact 703 | . . . . . 703 Slashing 136 | . . . . . 136 Piercing . | . . . . . . Highest Corruption 8 | . . . 1 . 8 Average Corruption 3 | . . . 1 . 3 Corruption Purged . | . . . . . . Corruption Blocked . | . . . . . . Effects 22 | . . . . . 22 Message Errors 6 | . . . . . 6 Matter Fused 3 | . . . . . 3 Heat Flow Errors 4 | . . . . . 4 Energy Discharges 2 | . . . . . 2 Data Loss (minor) 3 | . . . . . 3 Data Loss (major) 1 | . . . . . 1 Misfires 2 | . . . . . 2 Weapon Failures 1 | . . . . . 1 Overload Shots . | . . . . . . Overflow Damage 379 | . 27 16 . . 336 Projectiles 3 | . . . . . 3 Explosions 112 | . 27 16 . . 69 Melee 264 | . . . . . 264 Knockbacks 17 | . . . 4 5 8 Impact 1 | . . . . . 1 Kinetic 15 | . . . 4 5 6 Secondary 1 | . . . . . 1 Self-Inflicted Damage 333 | . 28 145 26 . 134 Shots 9 | . 1 4 1 . 3 Rammed 15 | . . 3 4 2 6 Targets Rammed 17 | . . 4 4 3 6 Kicked . | . . . . . . Crushed 2 | . . 1 . 1 . Highest Temperature 251 | . 6 210 204 81 251 Average Temperature 57 | . 3 72 62 21 76 Received Heat Transfer 924 | . 39 57 135 27 666 Siege Activations . | . . . . . . Robots Corrupted 2 | . . . . . 2 Combat Hostiles . | . . . . . . Parts Fried 4 | . . . . . 4 Impact Corruptions 9 | . . . . . 9 Robots Melted . | . . . . . . Combat Hostiles . | . . . . . . Parts Melted . | . . . . . . Heat Transferred 444 | . . 444 . . . Parts Sabotaged . | . . . . . . Parts Stolen . | . . . . . . Parts Stripped . | . . . . . . Power Chain Reactions . | . . . . . . Alert | -11 -10 -10 -9 -8 -7 ------- Run | Yrd Mat Min Mat Mat Fac Peak Influence 424 | 20 223 424 378 273 176 Initial 144 | . 13 86 113 144 . Average 134 | 10 141 268 226 140 36 Maximum Alert Level 2 | . 1 2 1 1 . Low Security (%) 66 | 100 44 8 42 70 100 Level 1 31 | . 55 79 57 29 . Level 2 1 | . . 12 . . . Level 3 . | . . . . . . Level 4 . | . . . . . . Level 5 . | . . . . . . High Security . | . . . . . . Max Security . | . . . . . . Squads Dispatched 11 | . . . 4 3 4 Investigation 1 | . . . 1 . . Extermination 2 | . . . . . 2 Reinforcement 6 | . . . 3 1 2 Assault . | . . . . . . Garrison 2 | . . . . 2 . Intercept . | . . . . . . Searches Triggered . | . . . . . . Construction Impeded 1 | . . . 1 . . Haulers Reinforced 1 | . . . . . 1 Active Scanning Responses . | . . . . . . Cargo Convoy Interrupts . | . . . . . . Stealth | -11 -10 -10 -9 -8 -7 --------- Run | Yrd Mat Min Mat Mat Fac Distress Signals 8 | . 1 . 2 2 3 Communications Jammed 21 | . . . . . 21 Distress Signals 20 | . . . . . 20 Times Spotted 70 | . 9 10 16 14 21 Peak Tracking Total 6 | . 6 3 4 4 6 Tactical Retreats 7 | . . . . 1 6 Traps | -11 -10 -10 -9 -8 -7 ------- Run | Yrd Mat Min Mat Mat Fac Traps Triggered 3 | . . . 1 . 2 Indirectly . | . . . . . . Trap Hack Attempts . | . . . . . . Triggered . | . . . . . . Disarmed . | . . . . . . Reprogrammed . | . . . . . . Reused . | . . . . . . Traps Extracted . | . . . . . . Installed . | . . . . . . Triggered . | . . . . . . Machines | -11 -10 -10 -9 -8 -7 ---------- Run | Yrd Mat Min Mat Mat Fac Machines Disabled 4 | . . 1 1 1 1 Max in Single Turn 1 | . . 1 1 1 1 Garrison Access 1 | . . . . 1 . Machines Repaired . | . . . . . . Machines Dismantled . | . . . . . . Machines Sabotaged . | . . . . . . Overloaded Fab Kills . | . . . . . . Hacking | -11 -10 -10 -9 -8 -7 --------- Run | Yrd Mat Min Mat Mat Fac Machines Accessed 8 | . 1 . 1 4 2 Terminals 4 | . 1 . . 2 1 Fabricators . | . . . . . . Repair Stations . | . . . . . . Recycling Units . | . . . . . . Scanalyzers 2 | . . . 1 1 . Garrison Access 2 | . . . . 1 1 Total Hacks 36 | . 4 . 8 21 3 Successful 23 | . 2 . 6 14 1 Failed 13 | . 2 . 2 7 2 Catastrophic 2 | . 1 . . . 1 Database Lockouts . | . . . . . . Manual 5 | . 3 . . 2 . Terminals 14 | . 4 . . 9 1 Fabricators . | . . . . . . Repair Stations . | . . . . . . Recycling Units . | . . . . . . Scanalyzers 18 | . . . 8 10 . Garrison Access 4 | . . . . 2 2 Terminal Hacks 7 | . 1 . . 5 1 Record 1 | . . . . 1 . Open DSF 1 | . . . . . 1 Unreport Threat 2 | . . . . 2 . Transport Status 1 | . 1 . . . . Reinforcement Status 1 | . . . . 1 . Zone Layout 1 | . . . . 1 . Fabricator Hacks . | . . . . . . Repair Station Hacks . | . . . . . . Recycling Unit Hacks . | . . . . . . Scanalyzer 14 | . . . 6 8 . Insert Component 7 | . . . 3 4 . Analyze 7 | . . . 3 4 . Garrison Access Hacks 1 | . . . . 1 . Seal Access 1 | . . . . 1 . Unauthorized Hacks 1 | . 1 . . . . Terminals 1 | . 1 . . . . Operators 1 | . 1 . . . . Fabricators . | . . . . . . Repair Stations . | . . . . . . Recycling Units . | . . . . . . Scanalyzers . | . . . . . . Garrison Access . | . . . . . . Data Cores Recovered . | . . . . . . Used . | . . . . . . Hacking Detections 6 | . 1 . 1 3 1 Full Trace Events 1 | . . . 1 . . Feedback Events 1 | . . . 1 . . Corruption 1 | . . . 1 . . Feedback Blocked . | . . . . . . Robot Schematics Acquired . | . . . . . . Robots Built . | . . . . . . Authchips . | . . . . . . Time . | . . . . . . Total Robot Build Rating . | . . . . . . Part Schematics Acquired 6 | . . . 2 4 . Parts Built . | . . . . . . Authchips . | . . . . . . Time . | . . . . . . Total Part Build Rating . | . . . . . . Parts Repaired . | . . . . . . Time . | . . . . . . Parts Recycled . | . . . . . . Recycled Matter . | . . . . . . Retrieved Matter . | . . . . . . Retrieved Components . | . . . . . . Parts Scanalyzed 7 | . . . 3 4 . Part Schematics Acquired 6 | . . . 2 4 . Parts Damaged . | . . . . . . Bothacking | -11 -10 -10 -9 -8 -7 ------------ Run | Yrd Mat Min Mat Mat Fac Used RIF Installer . | . . . . . . Robots Hacked . | . . . . . . Non-combat . | . . . . . . Combat . | . . . . . . Robot Hacks Applied . | . . . . . . Relay Couplers Released . | . . . . . . Fabnet Peak Effective % . | . . . . . . Robots Rewired . | . . . . . . Allies Hacked . | . . . . . . Hacks Repelled . | . . . . . . Allies | -11 -10 -10 -9 -8 -7 -------- Run | Yrd Mat Min Mat Mat Fac Total Allies . | . . . . . . Largest Group . | . . . . . . Highest-Rated Group . | . . . . . . Highest-Rated Ally . | . . . . . . Total Orders . | . . . . . . Ally Attacks . | . . . . . . Total Damage . | . . . . . . Kills . | . . . . . . Allies Corrupted . | . . . . . . Allies Melted . | . . . . . . Intel | -11 -10 -10 -9 -8 -7 ------- Run | Yrd Mat Min Mat Mat Fac Robot Analysis Total . | . . . . . . Derelict Logs Recovered 1 | . . 1 . . . Drone Launches . | . . . . . . Drone Recoveries . | . . . . . . Exploration | -11 -10 -10 -9 -8 -7 ------------- Run | Yrd Mat Min Mat Mat Fac Turns Passed 4550 | 132 245 683 739 1209 1542 Spaces Moved 2484 | 64 131 392 379 671 847 Core 93 | 14 . . . . 79 Treads 2391 | 50 131 392 379 671 768 Legs . | . . . . . . Wheels . | . . . . . . Hover . | . . . . . . Flight . | . . . . . . Fastest Speed 50 | 50 160 160 160 160 50 Average Speed 159 | 135 160 160 161 160 160 Slowest Speed 450 | 160 160 160 240 160 450 Overloaded Moves . | . . . . . . Propulsion Burnouts . | . . . . . . Robots Hopped . | . . . . . . Cave-ins Triggered . | . . . . . . Exploration Rate (%) 29 | 4 26 54 33 36 21 Regions Visited 5 Branch Regions 1 Pre-discovered Areas 2 | . . 2 . . . Known Exits Taken 2 | . . . 1 1 . Unknown Exits Taken 3 | 1 1 1 . . . Scrap Searched 1 | . . 1 . . . Spaces Dug 2 | . . . . . 2 Terrain Destroyed 259 | . 26 144 21 35 33 Melee 2 | . . . . . 2 Projectile 17 | . . . 8 8 1 AOE 240 | . 26 144 13 27 30 Terrain Rammed . | . . . . . . Walls Destroyed . | . . . . . . Machines Disabled . | . . . . . . Actions | -11 -10 -10 -9 -8 -7 --------- Run | Yrd Mat Min Mat Mat Fac Total 2806 | 89 153 418 451 752 943 Wait 1 | . . . . . 1 Move 2479 | 63 130 391 378 670 847 Hop . | . . . . . . Pick Up 51 | 9 10 3 11 11 7 Fast Attach 7 | . . . 1 4 2 Attach 25 | 7 . 1 5 2 10 Detach . | . . . . . . Swap 54 | . 5 3 7 23 16 Drop 39 | . 2 2 11 15 9 Fire 109 | 10 6 14 34 24 21 Melee 24 | . . . . . 24 Ram 2 | . . . . . 2 Kick . | . . . . . . Crush 15 | . . 4 4 3 4 Escape Stasis . | . . . . . . Rewire . | . . . . . . Trap . | . . . . . . Miscellaneous . | . . . . . . Route ------- -11/Scrapyard -10/Materials -10/Mines -9/Materials -8/Materials -7/Factory History --------- Turn | Location | Event 5 | -11/Scrapyard | Discovered new exit (range 15) 133 | -11/Scrapyard | Entered Materials 262 | -10/Materials | Destroyed 7 combat bots 307 | -10/Materials | Build established: Mutant 340 | -10/Materials | Discovered new exit (range 16) 378 | -10/Materials | Entered Mines 535 | -10/Mines | Learned location of Storage (-8) 832 | -10/Mines | Received a Rocket Launcher from a helpful Derelict 1037 | -10/Mines | Discovered new exit (range 12) 1061 | -10/Mines | Entered Materials 1061 | -9/Materials | Evolved 2 slots: Utility x2 1140 | -9/Materials | Build established: Scavenger-Mutant 1776 | -9/Materials | Build established: Scavenger-Skirmisher 1789 | -9/Materials | Discovered new exit (range 7) 1797 | -9/Materials | Identified exit to Materials 1800 | -9/Materials | Entered another Materials area 1800 | -8/Materials | Evolved 2 slots: Utility x2 2584 | -8/Materials | Garrison activated, responded to threat 2715 | -8/Materials | Garrison activated, responded to threat 2899 | -8/Materials | Discovered new exit (range 12) 3006 | -8/Materials | Identified exit to Factory 3009 | -8/Materials | Entered Factory 3009 | -7/Factory | Evolved 2 slots: Utility x1, Weapon x1 3361 | -7/Factory | Build established: Scavenger-Assassin 3666 | -7/Factory | Identified exit to DSF 4309 | -7/Factory | Lost 5 parts (1p1n1u2w) 4421 | -7/Factory | Lost 3 parts (1p1n1w) 4428 | -7/Factory | Core integrity fell below 50% 4504 | -7/Factory | Core integrity fell below 20% 4525 | -7/Factory | Lost 8 parts (4u4w) 4551 | -7/Factory | Destroyed by S-27 Virus with Autogun Last Messages --------------- 04468_ K-01 Serf collects debris. 04469_ The unstable cave ceiling collapses. 04470_ R-06 Scavenger collects Wheel. 04471_ K-01 Serf collects debris. 04475_ R-06 Scavenger collects Aluminum Leg. 04480_ R-06 Scavenger collects Mining Laser. 04481_ Rocket Launcher destroyed. 04486_ K-01 Serf collects debris. 04494_ Imp. Shield Generator destroyed. 04497_ Slammed into A-02 Transporter. 04497_ Imp. Signal Interpreter broken. 04497_ Destabilizing: Short circuit. 04497_ K-01 Serf collects debris. 04497_ A-02 Transporter calls for reinforcements. 04497_ ALERT: Hostile activity reported, dispatching reinforcements to area. 04499_ Slammed into G-47 Trooper. 04500_ K-01 Serf collects debris. 04535_ Med. Storage Unit destroyed. Map ----- +----------------------------------------------------+ | ???# """ """ """ #?????????????????????????? | | ???# """ """ """ #?????????????????????????? | | ???# """ """ """ #?????????????????????????? | | ???# #?????????????????????????? | | ???# #?????????????????????????? | | ??#####+########## #??? #????????????????????? | | ??# ! #????# #### #####????????????????? | | ??# #????# ???????????????? | | ??# """"#????# ???????????????? | | ??# """"#????# ???????????????? | | ??# """"#????# ???????????????? | | ??# """"#????# ???????????????? | | ### #????# #####+####????????????????? | | + ] #????# #?????????????????????????? | | ################## #?????????????????????????? | | ???# / #?????????????????????????? | | ?????? " " " " " # #?????????????????????????? | | ???????? " " " " # ##????????????????????????? | | ?????????" " " "?# +????????????????????????? | | ?????????? " " "?# #????????????????????????? | | ?????????? " " ??# #????????????????????????? | | ?????????? " " ??# +????????????????????????? | | ???????????" "???#+#########?????????????????????? | | ???????????" "???# ss #?????????????????????? | | ?????????????????# #?????????????????????? | | ?????????????????# @ #?????????????????????? | | ?????????????????# #?????????????????????? | | ?????????????????###########?????????????????????? | | ?????????????????????????????????????????????????? | | ?????????????????????????????????????????????????? | | ?????????????????????????????????????????????????? | | ?????????????????????????????????????????????????? | | ?????????????????????????????????????????????????? | | ?????????????????????????????????????????????????? | | ?????????????????????????????????????????????????? | | ?????????????????????????????????????????????????? | | ?????????????????????????????????????????????????? | | ?????????????????????????????????????????????????? | | ?????????????????????????????????????????????????? | | ?????????????????????????????????????????????????? | | ?????????????????????????????????????????????????? | | ?????????????????????????????????????????????????? | | ?????????????????????????????????????????????????? | | ?????????????????????????????????????????????????? | | ?????????????????????????????????????????????????? | | ?????????????????????????????????????????????????? | | ?????????????????????????????????????????????????? | | ?????????????????????????????????????????????????? | | ?????????????????????????????????????????????????? | | ?????????????????????????????????????????????????? | +----------------------------------------------------+ Best States ------------- Heat Dissipation 34 Energy Generation 15 Energy Capacity 265 Matter Stores 300 Matter Capacity 300 Sight Range 18 Robot Scan Range 15 Terrain Scan Range 16 Terrain Scan Density 110 Jamming Range 12 Evasion (%) 50 Recoil Reduction 6 Item Schematics ----------------- Assault Cannon | -9/Materials | Scanalyzed Rocket Launcher | -9/Materials | Scanalyzed Sensor Array | -8/Materials | Scanalyzed Lgt. Nuclear Core | -8/Materials | Scanalyzed Structural Scanner | -8/Materials | Scanalyzed Maul | -8/Materials | Scanalyzed Robot Schematics ------------------ None Fabricated ------------ Nothing Alien Tech Used ----------------- None Achievements -------------- I Spy Total Silence Challenges ------------ None Game ------ Seed PlasmaDamperBroadsword Manual? 0 Play Time 01:07:09 Cumulative 25.0 hours Start 2024.11.10 @ 10:16:45 End 2024.11.10 @ 11:44:57 Sessions 1 Manual Loads 0 Difficulty Rogue Special Mode None Game No. 57 Rogue 57 Adventurer 0 Explorer 0 Win Type - Total 0 Types 0/0/0/0/0/0/0/0/0 Lore% 11 Gallery% 20 Achievement% 20 Wizard Run 0 Options --------- Layout 1 ASCII 0 Keyboard 0 Movement Arrows Keybinds 0 Fullscreen 1 Font 24/Smallcaps Map View 50x40 Zoom Use 0% Tactical HUD 1 Map Filters NONE Filters NONE Steam 1 RUN: 6d850a56-0e17-4bb1-b38d-87a9b42bf107